bitfinex/quotes_ETHUSD_20251111
["timestamp","ask_amount","ask_price","bid_price","bid_amount"]
[1762889160217,0.27070815,3464.7,3464.6,21.27226764]
[1762889160413,0.27070815,3464.7,3464.6,18.38593156]
[1762889160612,0.27070815,3464.7,3464.6,21.27226764]
[1762889161126,0.002,3464.7,3464.6,21.72986764]
[1762889161538,0.002,3464.7,3464.6,18.84353156]
[1762889161539,0.27069961,3464.7,3464.6,18.84353156]
[1762889161906,0.27069961,3464.7,3464.6,21.72986764]
[1762889162208,0.27069961,3464.7,3464.6,18.38593156]
[1762889162529,0.27069961,3464.7,3464.6,19.03233608]
[1762889163336,0.27069961,3464.7,3464.6,19.48993608]
[1762889164746,0.27069961,3464.7,3464.6,19.89544008]
[1762889165046,0.002,3464.7,3464.6,20.28517397]
[1762889165346,0.002,3464.7,3464.6,19.89544008]
[1762889165648,0.002,3464.7,3464.6,26.38830008]
[1762889167635,0.002,3464.7,3464.6,22.59230008]
[1762889171550,0.002,3464.7,3464.6,23.46640183]
[1762889171863,0.002,3464.7,3464.6,23.06133461]
[1762889172949,0.002,3464.7,3464.6,22.59230008]
[1762889173468,0.002,3464.7,3464.6,21.46470008]
[1762889173610,0.002,3464.7,3464.6,21.05919608]
[1762889173969,0.002,3464.7,3464.6,22.59230008]
[1762889175167,0.002,3464.7,3464.6,22.13470008]
[1762889175472,0.002,3464.7,3464.6,22.59230008]
[1762889176036,0.002,3464.7,3464.6,23.72604088]
[1762889176375,0.002,3466.6,3466.2,3.29050775]
[1762889176581,0.002,3466.6,3466.2,5.91365853]
[1762889176963,0.002,3466.6,3466.2,20.41365853]
[1762889179206,0.002,3466.6,3466.2,19.74365853]
[1762889179482,0.002,3466.6,3466.2,19.77035853]
[1762889180357,0.002,3466.6,3466.2,20.22795853]
[1762889180764,0.002,3466.6,3466.2,19.55795853]
[1762889181285,0.5012,3466.3,3466.2,18.21405453]
[1762889181474,0.5012,3466.3,3466.2,18.88405453]
[1762889181657,0.5012,3466.3,3466.2,18.61955853]
[1762889181857,0.5012,3466.3,3466.2,19.28955853]
[1762889183259,0.5577,3466.3,3466.2,18.88405453]
[1762889184376,0.5012,3466.3,3466.2,18.88405453]
[1762889185204,0.002,3466.3,3466.2,20.22795853]
[1762889185856,0.002,3466.3,3466.2,20.63302575]
[1762889186059,5.06636295,3467.9,3467.3,0.405504]
[1762889186260,4.87966295,3467.7,3467.4,3.88290205]
[1762889186466,6.01340375,3467.7,3467.6,0.5]
[1762889186795,6.01340375,3467.7,3467.6,15.0]
[1762889186995,6.48070375,3467.7,3467.6,15.0]
[1762889187313,6.56990375,3467.7,3467.6,15.67]
[1762889187807,6.83745794,3467.7,3467.6,15.17]
[1762889188109,9.72121374,3467.7,3467.6,15.17]
[1762889188482,9.72121374,3467.7,3467.6,14.5]
[1762889189000,9.86396064,3467.7,3467.6,14.5]
[1762889190407,4.84155079,3467.7,3467.6,14.5]
[1762889190708,9.86396064,3467.7,3467.6,14.5]
[1762889191274,9.59640645,3467.7,3467.6,14.5]
[1762889191480,9.86391769,3467.7,3467.6,14.5]
[1762889192288,2.88430888,3467.1,3467.0,0.671]
[1762889192628,0.26751124,3467.1,3467.0,0.671]
[1762889192922,0.73881124,3467.1,3467.0,15.171]
[1762889194607,0.26751124,3467.1,3467.0,15.171]
[1762889194922,0.26751124,3467.1,3467.0,15.671]
[1762889195419,0.26751124,3467.1,3467.0,18.55533804]
[1762889195420,0.73481124,3467.1,3467.0,18.55533804]
[1762889195805,0.73481124,3467.1,3467.0,15.671]
[1762889196116,0.73481124,3467.1,3467.0,18.55533804]
[1762889196899,0.4704,3467.8,3467.4,2.88399671]
[1762889197127,0.26796234,3467.7,3467.5,1.171]
[1762889197420,0.26796234,3467.6,3467.5,1.171]
[1762889197722,0.35416234,3467.6,3467.5,1.171]
[1762889197922,0.82066234,3467.6,3467.5,1.171]
[1762889199624,0.35416234,3467.6,3467.5,1.171]
[1762889200960,0.82066234,3467.6,3467.5,1.171]
[1762889201154,0.82066234,3467.6,3467.5,0.671]
[1762889202553,0.82066234,3467.6,3467.5,1.1378]
[1762889202763,0.26796234,3467.6,3467.5,4.05392213]
[1762889202921,0.35416234,3467.6,3467.5,4.05392213]
[1762889204670,0.35616234,3467.6,3467.5,1.17]
[1762889205225,0.82266234,3467.6,3467.4,0.67]
[1762889205460,0.27266234,3467.5,3467.4,0.67]
[1762889208364,0.74306234,3467.5,3467.4,0.67]
[1762889208660,0.27266234,3467.5,3467.4,0.67]
[1762889209837,0.27266234,3467.5,3467.3,0.5]
[1762889209838,0.74306234,3467.5,3467.0,17.38433349]
[1762889210038,0.34956234,3467.4,3467.1,1.17]
[1762889210237,0.0862,3467.1,3467.0,14.5]
[1762889210438,3.23841719,3467.1,3467.0,14.5]
[1762889210645,3.70491719,3467.1,3467.0,14.5]
[1762889210934,1.95440314,3467.1,3467.0,14.5]
[1762889211134,4.83865799,3467.1,3467.0,14.5]
[1762889211448,1.48790314,3467.1,3467.0,14.5]
[1762889213260,4.83865799,3467.1,3467.0,14.5]
[1762889213563,1.95440314,3467.1,3467.0,14.5]
[1762889213759,1.48790314,3467.1,3467.0,14.5]
[1762889214882,9.39596986,3467.1,3467.0,14.5]
[1762889215047,6.97821501,3467.1,3467.0,14.5]
[1762889215254,6.51171501,3467.1,3467.0,14.5]
[1762889216668,9.39596986,3467.1,3467.0,14.5]
[1762889217689,10.53246986,3467.1,3467.0,14.5]
[1762889218331,4.01832844,3466.7,3466.6,0.001]
[1762889218538,9.31480265,3466.7,3466.6,0.001]
[1762889218787,9.79320265,3466.7,3466.6,0.001]
[1762889220370,6.43021501,3466.7,3466.6,0.001]
[1762889220570,6.42551501,3466.7,3466.6,0.001]
[1762889221033,6.49791501,3466.7,3466.6,0.001]
[1762889221236,1.40170314,3466.7,3466.6,3.35057085]
[1762889221470,1.40170314,3466.7,3466.6,3.57781788]
[1762889221670,1.40170314,3466.7,3466.6,5.99398873]
[1762889221845,1.40170314,3466.7,3466.6,3.10931788]
[1762889222239,1.47410314,3466.7,3466.6,2.64441788]
[1762889222590,1.40170314,3466.7,3466.6,2.64441788]
[1762889222899,4.83429078,3466.7,3466.6,0.001]
[1762889223185,1.40170314,3466.7,3466.6,0.001]
[1762889223398,1.47930314,3466.7,3466.6,0.001]
[1762889223880,4.36389078,3466.7,3466.6,0.001]
[1762889224034,1.47930314,3466.7,3466.6,0.001]
[1762889224436,6.50311501,3466.7,3466.6,0.001]
[1762889224669,6.42551501,3466.7,3466.6,0.501]
[1762889225582,6.50701501,3466.7,3466.6,0.001]
[1762889226350,6.42551501,3466.7,3466.6,0.001]
[1762889228774,6.50701501,3466.7,3466.6,0.001]
[1762889234583,6.42551501,3466.7,3466.6,0.9344]
[1762889234894,0.26796234,3466.7,3466.6,6.50647212]
[1762889235073,0.002,3467.1,3467.0,0.5]
[1762889235270,0.27046716,3467.1,3467.0,18.34923804]
[1762889235474,0.27046716,3467.1,3467.0,18.81773804]
[1762889235688,0.27046716,3467.1,3467.0,15.9334]
[1762889236298,0.27046716,3467.1,3467.0,15.4649]
[1762889236467,0.34286716,3467.1,3467.0,14.5]
[1762889238706,0.27046716,3467.1,3467.0,19.65469212]
[1762889238915,0.27046716,3467.1,3467.0,17.73885408]
[1762889239408,0.27046716,3467.1,3467.0,17.27035408]
[1762889240613,0.27046716,3467.1,3467.0,20.62319212]
[1762889241972,0.27046716,3467.1,3467.0,17.73885408]
[1762889243607,0.27046716,3467.1,3467.0,20.62319212]
[1762889245230,0.27046716,3467.1,3467.0,17.73885408]
[1762889245819,0.27046716,3467.1,3467.0,20.62319212]
[1762889248693,0.27046716,3467.1,3467.0,17.27035408]
[1762889248998,0.27046716,3467.1,3467.0,15.6294]
[1762889249214,0.27046716,3467.1,3467.0,18.51373804]
[1762889249512,0.27046716,3467.1,3467.0,19.46593804]
[1762889250099,0.002,3467.1,3467.0,19.87144204]
[1762889252822,0.002,3467.1,3467.0,19.41824204]
[1762889253029,0.002,3467.1,3467.0,22.10070981]
[1762889254330,1e-08,3467.6,3467.5,3.74882613]
[1762889254530,1e-08,3467.6,3467.5,4.91782613]
[1762889254729,1e-08,3467.6,3467.5,5.37002613]
[1762889254934,1e-08,3467.6,3467.5,20.98383891]
[1762889256802,1e-08,3467.6,3467.5,21.38890613]
[1762889257000,1e-08,3467.6,3467.5,20.98383891]
[1762889258094,1e-08,3467.6,3467.5,20.31483891]
[1762889258424,1e-08,3467.6,3467.5,20.98383891]
[1762889258807,1e-08,3467.6,3467.5,19.90933491]
[1762889259013,1e-08,3467.6,3467.5,20.57833491]
[1762889259216,1e-08,3467.6,3467.5,20.98383891]
[1762889261144,1e-08,3467.6,3467.5,20.98996215]
[1762889261513,1e-08,3467.6,3467.5,22.12370295]
[1762889270258,1e-08,3467.6,3467.5,22.79985815]
[1762889270458,0.47700001,3467.6,3467.5,17.89004537]
[1762889270627,0.47700001,3467.6,3467.5,18.55904537]
[1762889270952,0.47700001,3467.6,3467.5,18.96454937]
[1762889271253,0.55050001,3467.6,3467.5,18.55904537]
[1762889271453,0.47700001,3467.6,3467.5,18.55904537]
[1762889272444,1e-08,3467.6,3467.5,19.01844537]
[1762889273260,1e-08,3467.6,3467.5,18.55904537]
[1762889273261,0.05260001,3467.6,3467.5,18.55904537]
[1762889274032,0.54620001,3467.6,3467.5,18.55904537]
[1762889274242,0.54620001,3467.6,3467.5,17.89004537]
[1762889274546,0.54620001,3467.6,3467.5,18.56004537]
[1762889275657,0.05260001,3467.6,3467.5,18.56004537]
[1762889277281,0.05260001,3467.6,3467.5,18.55392213]
[1762889277666,0.05260001,3467.6,3467.5,14.501]
[1762889277667,5.38637094,3467.6,3467.5,14.501]
[1762889277841,8.53936573,3467.6,3467.5,14.501]
[1762889278859,5.65552677,3467.6,3467.5,14.501]
[1762889279085,9.67310653,3467.6,3467.5,14.501]
[1762889279953,9.67310653,3467.6,3467.5,0.001]
[1762889279954,14.54357746,3467.6,3467.5,0.001]
[1762889280992,1.91879664,3467.6,3467.5,0.001]
[1762889281152,9.88363619,3467.6,3467.5,0.001]
[1762889281695,14.75410712,3467.6,3467.5,0.001]
[1762889283795,9.88363619,3467.6,3467.5,0.001]
[1762889283999,9.88363619,3467.6,3467.5,0.00712324]
[1762889287613,9.88363619,3467.6,3467.5,14.50712324]
[1762889292597,14.75410712,3467.6,3467.5,14.50712324]
[1762889292965,9.88363619,3467.6,3467.5,14.50712324]
[1762889295678,9.88363619,3467.6,3467.5,0.00712324]
[1762889296081,9.88363619,3467.6,3467.5,14.50712324]
[1762889298116,9.42033619,3467.6,3467.5,14.50712324]
[1762889298419,9.88363619,3467.6,3467.5,14.50712324]
[1762889298724,1.45549664,3467.6,3467.5,14.50712324]
[1762889299096,4.3393356,3467.6,3467.5,14.50712324]
[1762889299514,1.45549664,3467.6,3467.5,14.50712324]
[1762889300133,4.3393356,3467.6,3467.5,14.50712324]
[1762889300455,4.8026356,3467.6,3467.5,14.50712324]
[1762889301597,4.3393356,3467.6,3467.5,14.50712324]
[1762889302324,1.40289664,3467.6,3467.5,14.50712324]
[1762889302514,1.40289664,3467.6,3467.5,15.46282324]
[1762889302701,1.40289664,3467.6,3467.5,15.96252324]
[1762889303635,0.26915584,3467.6,3467.5,15.96252324]
[1762889305532,0.26915584,3467.6,3467.5,18.84644537]
[1762889305867,0.26915584,3467.6,3467.5,21.08639514]
[1762889306015,0.26915584,3467.6,3467.5,17.70277301]
[1762889306217,0.26915584,3467.6,3467.5,14.50712324]
[1762889306218,4.8329356,3467.6,3467.5,14.50712324]
[1762889306836,9.70340653,3467.6,3467.5,0.00712324]
[1762889307054,9.70340653,3467.6,3467.1,0.001]
[1762889307320,13.81965432,3467.2,3467.1,0.001]
[1762889307624,14.75781015,3467.2,3467.1,0.001]
[1762889307967,15.24321015,3467.2,3467.1,0.001]
[1762889308348,2.88442124,3466.9,3466.8,0.001]
[1762889308550,2.88442124,3466.9,3466.6,0.001]
[1762889308551,13.7592703,3466.7,3466.6,0.001]
[1762889308867,14.48272613,3466.7,3466.6,0.001]
[1762889309072,14.58142613,3466.7,3466.6,0.001]
[1762889310941,9.86723206,3466.7,3466.6,0.001]
[1762889315150,9.86718316,3466.7,3466.6,0.001]
[1762889320170,9.86718316,3466.7,3466.2,0.001]
[1762889320171,2.88492052,3466.3,3466.2,0.001]
[1762889320376,2.88492052,3466.3,3465.5,0.001]
[1762889320377,4.01891102,3466.0,3465.5,0.001]
[1762889320611,2.88550323,3465.6,3465.5,0.001]
[1762889320778,10.93542315,3465.6,3465.5,0.001]
[1762889321307,10.9348858,3465.6,3465.5,0.001]
[1762889322910,10.4451858,3465.6,3465.5,0.001]
[1762889323709,10.8397858,3465.6,3465.5,0.001]
[1762889324711,6.42905817,3465.6,3465.5,0.9709]
[1762889324912,6.42905817,3465.6,3465.5,0.4912]
[1762889325216,0.26856958,3465.6,3465.5,1.4709]
[1762889325386,0.26856958,3465.6,3465.5,15.9709]
[1762889325708,0.26856958,3465.8,3465.5,20.77253167]
[1762889325896,0.26856958,3465.7,3465.6,0.4797]
[1762889326501,0.26856958,3465.7,3465.6,0.9699]
[1762889329509,0.26856958,3465.7,3465.6,15.4699]
[1762889333716,0.26856958,3465.7,3465.6,14.9902]
[1762889333920,4.28773035,3465.7,3465.6,14.5]
[1762889334614,1.40231038,3465.7,3465.6,14.5]
[1762889334814,4.28773035,3465.7,3465.6,14.5]
[1762889335125,1.40231038,3465.7,3465.6,14.5]
[1762889335836,1.40231038,3465.7,3465.6,15.478]
[1762889336042,1.40231038,3465.7,3465.6,20.03031271]
[1762889338719,1.40231038,3465.7,3465.6,17.14480948]
[1762889339319,1.40231038,3465.7,3465.6,20.03031271]
[1762889340843,0.26856958,3465.7,3465.6,20.03031271]
[1762889342031,0.26856958,3465.7,3465.6,14.5]
[1762889342356,0.26856958,3465.7,3465.6,14.9738]
[1762889342930,0.26856958,3465.7,3465.6,14.5]
[1762889343163,0.26856958,3465.7,3465.6,14.501]
[1762889344527,0.26856958,3465.7,3465.6,14.9748]
[1762889345768,0.26856958,3465.7,3465.6,17.86030323]
[1762889345929,0.26856958,3465.7,3465.6,21.01264517]
[1762889346134,0.26856958,3465.7,3465.6,21.68164517]
[1762889346864,0.26856958,3465.7,3465.6,18.79614194]
[1762889347070,0.26856958,3465.7,3465.6,21.68164517]
[1762889350986,0.26856958,3465.7,3465.6,18.79614194]
[1762889351187,0.26856958,3465.7,3465.6,19.49360323]
[1762889351390,0.26856958,3465.7,3465.6,16.6081]
[1762889351690,0.26856958,3465.7,3465.6,19.49360323]
[1762889352998,0.26856958,3465.7,3465.6,18.82460323]
[1762889353295,0.26856958,3465.7,3465.6,19.49360323]
[1762889354361,0.26856958,3465.7,3465.6,22.11121874]
[1762889364008,0.26856958,3465.7,3465.6,7.61121874]
[1762889364305,0.26856958,3465.7,3465.6,19.49360323]
[1762889365604,0.26856958,3465.7,3465.6,16.6081]
[1762889365806,0.26856958,3465.7,3465.6,0.001]
[1762889365807,3.69908955,3465.7,3465.6,0.001]
[1762889366006,0.81366958,3465.7,3465.6,0.001]
[1762889366197,0.33566958,3465.7,3465.6,0.001]
[1762889366714,4.35483035,3465.7,3465.6,0.001]
[1762889366867,4.83458342,3465.7,3465.6,0.001]
[1762889367070,1.94916345,3465.7,3465.6,0.001]
[1762889367673,4.83458342,3465.7,3465.6,0.001]
[1762889367869,1.94916345,3465.7,3465.6,0.001]
[1762889369215,1.47116345,3465.7,3465.6,0.001]
[1762889370882,6.34622145,3465.7,3465.6,0.001]
[1762889372536,14.58469942,3465.7,3465.6,0.001]
[1762889372889,6.34622145,3465.7,3465.6,0.001]
[1762889373294,6.34600906,3465.7,3465.6,0.001]
[1762889373819,1.40385106,3465.7,3465.6,0.4778]
[1762889375241,1.40385106,3465.7,3465.6,14.9778]
[1762889376852,1.40385106,3465.7,3465.6,15.4704]
[1762889376995,0.27011026,3465.7,3465.6,21.07204323]
[1762889381450,0.27011026,3465.7,3465.6,21.47754723]
[1762889387352,0.27011026,3465.7,3465.6,20.80854723]
[1762889387514,0.27011026,3465.7,3465.6,21.47754723]
[1762889388611,0.27011026,3465.7,3465.6,20.31594723]
[1762889388816,0.27011026,3465.7,3465.6,21.47754723]
[1762889391452,0.002,3465.9,3465.8,3.38533671]
[1762889391652,0.27166725,3465.9,3465.8,6.2985251]
[1762889391842,0.27166725,3465.9,3465.8,6.7911251]
[1762889392044,0.27166725,3465.9,3465.8,6.9675251]
[1762889392418,0.27166725,3465.9,3465.8,6.2985251]
[1762889392616,0.27166725,3465.9,3465.8,6.9675251]
[1762889394751,0.27166725,3465.9,3465.8,7.4601251]
[1762889397469,0.27166725,3465.9,3465.8,6.9675251]
[1762889397672,0.33876725,3465.9,3465.8,1.169]
[1762889397968,2.88534818,3465.8,3465.6,14.501]
[1762889398140,5.14952525,3465.7,3465.6,14.501]
[1762889398548,5.64412525,3465.7,3465.6,14.501]
[1762889400168,5.14952525,3465.7,3465.6,14.501]
[1762889400573,0.27446725,3465.7,3465.6,14.501]
[1762889400777,0.27446725,3465.7,3465.6,15.001]
[1762889401337,0.26966725,3465.7,3465.6,17.88650323]
[1762889401641,0.26966725,3465.7,3465.6,22.10910276]
[1762889402358,0.002,3465.9,3465.8,3.29084071]
[1762889402595,0.002,3465.9,3465.8,4.27464071]
[1762889402745,0.002,3465.9,3465.8,5.0815746]
[1762889403075,0.002,3465.9,3465.8,19.24844071]
[1762889403237,0.002,3465.9,3465.8,22.41598466]
[1762889404174,0.002,3465.9,3465.8,22.86031245]
[1762889406247,0.002,3466.6,3466.5,3.29025807]
[1762889406453,0.002,3466.6,3466.5,4.94205807]
[1762889406654,0.002,3466.6,3466.5,6.26633847]
[1762889406962,0.002,3466.6,3466.5,20.76633847]
[1762889410169,0.002,3467.2,3467.1,3.78975885]
[1762889410378,0.002,3467.2,3467.1,4.94155885]
[1762889410694,0.002,3467.2,3467.1,5.41535885]
[1762889410986,0.002,3467.2,3467.1,20.7453293]
[1762889411976,0.0568,3467.2,3467.1,19.3822253]
[1762889412802,0.0568,3467.2,3467.1,16.49797045]
[1762889412997,0.002,3467.2,3467.1,19.3822253]
[1762889413223,0.002,3467.2,3467.1,19.8660253]
[1762889415004,0.002,3467.2,3467.1,20.7453293]
[1762889418087,0.002,3467.2,3467.1,21.12512986]
[1762889418286,0.002,3467.2,3467.1,20.7453293]
[1762889418609,0.1154093,3468.8,3468.7,2.88292443]
[1762889418905,0.6793,3469.2,3469.1,0.5]
[1762889419107,0.26852655,3469.2,3469.1,4.03439202]
[1762889419307,0.1847,3469.5,3469.4,0.5]
[1762889419479,0.50776077,3469.5,3469.4,3.38234276]
[1762889419803,0.50776077,3469.5,3469.4,18.55034276]
[1762889420009,0.50776077,3469.5,3469.4,15.668]
[1762889420193,0.7297,3469.5,3469.4,15.668]
[1762889421109,0.7297,3469.5,3469.4,18.55034276]
[1762889421300,0.2395,3469.5,3469.4,15.668]
[1762889421975,0.50735106,3469.5,3469.4,15.668]
[1762889422376,0.2395,3469.5,3469.4,15.668]
[1762889422818,0.7297,3469.5,3469.4,15.668]
[1762889422982,0.99741689,3469.5,3469.4,15.668]
[1762889423807,10.10159115,3469.5,3469.4,15.168]
[1762889424113,5.22653315,3469.5,3469.4,14.5]
[1762889424290,2.34427346,3469.5,3468.8,0.668]
[1762889424503,2.88274956,3469.0,3468.8,0.668]
[1762889424710,2.88284132,3468.8,3468.6,1.168]
[1762889425032,0.0018,3468.8,3468.6,1.168]
[1762889425216,0.5464,3468.7,3468.6,1.168]
[1762889425792,0.5464,3468.7,3468.6,15.668]
[1762889426226,0.5464,3468.7,3468.6,14.5]
[1762889426399,4.83072665,3468.7,3468.6,14.5]
[1762889427612,1.94780222,3468.7,3468.6,14.5]
[1762889427907,4.83072665,3468.7,3468.6,14.5]
[1762889428933,5.69640884,3468.7,3468.6,14.5]
[1762889430840,0.81406142,3468.7,3468.6,15.0]
[1762889431132,0.32196142,3468.7,3468.6,15.0]
[1762889431332,0.77556142,3468.7,3468.6,14.5]
[1762889431497,4.79222665,3468.7,3468.6,14.5]
[1762889431698,1.90930222,3468.7,3468.6,14.5]
[1762889431899,4.79222665,3468.7,3468.6,14.5]
[1762889434229,4.79222665,3468.7,3467.9,0.4674]
[1762889434230,1.1337408,3468.4,3467.9,0.5]
[1762889434436,4.01733029,3467.9,3467.8,0.001]
[1762889434632,0.26766142,3467.9,3467.8,0.001]
[1762889434942,2.07210222,3467.9,3467.8,15.001]
[1762889435148,4.95569171,3467.9,3467.8,14.501]
[1762889435347,2.07210222,3467.9,3467.8,14.501]
[1762889436220,1.62210222,3467.9,3467.8,14.501]
[1762889437961,1.40140222,3467.9,3467.8,15.4543]
[1762889438318,1.40140222,3467.9,3467.8,15.001]
[1762889438936,1.40140222,3467.9,3467.8,15.4543]
[1762889439126,1.40140222,3467.9,3467.8,15.001]
[1762889439561,1.40140222,3467.9,3467.8,15.4543]
[1762889440043,0.26766142,3467.9,3467.8,17.83797264]
[1762889440246,0.26766142,3467.9,3467.8,19.81732914]
[1762889441080,0.26766142,3467.9,3467.8,19.40369525]
[1762889442163,0.26766142,3467.9,3467.8,18.80537264]
[1762889442600,0.26766142,3467.9,3467.8,15.001]
[1762889442903,0.26766142,3467.9,3467.8,16.1223]
[1762889443100,0.26766142,3467.9,3467.8,19.47337264]
[1762889443386,0.26766142,3467.9,3467.8,19.00597264]
[1762889443992,0.26766142,3467.9,3467.8,16.1223]
[1762889444469,0.26766142,3467.9,3467.8,19.00597264]
[1762889444678,0.36316142,3467.9,3467.8,15.669]
[1762889445151,0.26766142,3467.9,3467.8,19.00597264]
[1762889445355,0.26766142,3467.9,3467.8,19.47337264]
[1762889445603,0.26766142,3467.9,3467.8,21.70908605]
[1762889448802,0.26966142,3467.9,3467.8,21.70908605]
[1762889449593,0.26966142,3467.9,3467.8,22.11459005]
[1762889450121,0.26966142,3467.9,3467.8,25.91059005]
[1762889450328,0.26966142,3467.9,3467.8,26.32422394]
[1762889450519,0.26966142,3467.9,3467.8,22.11459005]
[1762889453483,0.26966142,3467.9,3467.8,22.52822394]
[1762889454223,0.26966142,3467.9,3467.8,22.11459005]
[1762889455135,0.002,3468.3,3467.8,22.11459005]
[1762889455333,0.002,3468.3,3468.2,4.24214406]
[1762889455627,0.002,3468.3,3468.2,1.572504]
[1762889455837,0.002,3468.3,3468.2,4.45584406]
[1762889456132,0.002,3468.3,3468.2,19.45184406]
[1762889456502,0.002,3468.3,3468.2,18.78484406]
[1762889456700,0.002,3468.3,3468.2,21.66541698]
[1762889457426,0.002,3468.3,3468.2,21.16941698]
[1762889457628,0.002,3468.3,3468.2,21.62691698]
[1762889458732,0.002,3468.3,3468.2,20.76391298]
[1762889458940,0.002,3468.3,3468.2,17.88057292]
[1762889459107,0.002,3468.3,3468.2,20.76391298]
[1762889459508,0.002,3468.3,3468.2,21.68811298]
[1762889460006,0.002,3468.3,3468.2,21.22141298]
[1762889460203,0.0621,3468.3,3468.2,17.21357292]
[1762889460408,0.0621,3468.3,3468.2,15.667]
[1762889460603,0.0621,3468.3,3468.2,18.55034006]
[1762889460923,0.002,3468.3,3468.2,19.47454006]
[1762889461509,0.002,3468.3,3468.2,19.88004406]
[1762889461809,0.002,3468.3,3468.2,22.15639713]
[1762889462006,0.002,3468.3,3468.2,22.57003102]
[1762889462713,0.002,3468.3,3468.2,23.43531371]
[1762889463415,0.002,3469.5,3469.4,3.28784676]
[1762889463611,0.002,3469.5,3469.4,5.09574676]
[1762889463817,0.002,3469.5,3469.4,6.77389872]
[1762889464218,0.002,3469.5,3469.4,21.27389872]
[1762889464942,0.002,3469.5,3469.4,20.86026483]
[1762889465749,0.002,3469.5,3469.4,20.21016483]
[1762889466758,0.002,3469.5,3469.4,20.67686483]
[1762889466956,0.002,3469.5,3469.4,20.00986483]
[1762889467119,0.002,3469.5,3469.4,20.67686483]
[1762889467637,0.002,3469.5,3469.4,24.47286483]
[1762889468253,0.002,3469.5,3469.4,20.67686483]
[1762889469647,0.002,3469.5,3469.4,20.00986483]
[1762889469855,0.002,3469.5,3469.4,20.67686483]
[1762889470256,0.002,3469.5,3469.4,19.75266483]
[1762889470558,0.002,3469.5,3469.4,19.08566483]
[1762889470737,0.002,3469.5,3469.4,20.21016483]
[1762889471676,0.002,3469.5,3469.4,20.67686483]
[1762889473165,0.002,3469.5,3469.4,24.47286483]
[1762889474978,0.002,3469.5,3469.4,19.75266483]
[1762889475145,0.0621,3469.5,3469.4,16.072504]
[1762889475469,0.5471,3469.5,3469.4,16.072504]
[1762889475672,0.0621,3469.5,3469.4,15.667]
[1762889475848,0.0621,3469.5,3469.4,15.0]
[1762889476049,0.5471,3469.5,3469.4,15.667]
[1762889476578,0.5471,3469.5,3469.4,15.0]
[1762889476776,0.5471,3469.5,3469.4,14.5]
[1762889476777,3.42935969,3469.5,3469.4,14.5]
[1762889476989,4.90603646,3469.5,3469.4,14.5]
[1762889477352,5.17409597,3469.5,3469.4,14.5]
[1762889479347,2.29183628,3469.5,3469.4,14.5]
[1762889479777,5.17409597,3469.5,3469.4,14.5]
[1762889480587,2.29183628,3469.5,3469.4,14.5]
[1762889481376,5.17409597,3469.5,3469.4,14.5]
[1762889482179,2.29183628,3469.5,3469.4,14.5]
[1762889482551,1.94890031,3469.5,3469.4,14.5]
[1762889482781,4.83116,3469.5,3469.4,14.5]
[1762889483187,1.94890031,3469.5,3469.4,14.5]
[1762889483665,1.46390031,3469.5,3469.4,14.5]
[1762889483866,1.40380031,3469.5,3469.4,15.0]
[1762889484067,1.40380031,3469.5,3469.4,19.90654276]
[1762889484282,1.40380031,3469.5,3469.4,18.33984276]
[1762889484461,0.27005951,3469.5,3469.4,18.33984276]
[1762889484668,0.27005951,3469.5,3469.4,17.88234276]
[1762889485694,0.27005951,3469.5,3469.4,18.33984276]
[1762889485861,0.27005951,3469.5,3469.4,18.74534676]
[1762889486061,0.002,3469.5,3469.4,21.46362451]
[1762889492092,0.002,3469.5,3469.4,22.13062451]
[1762889495594,0.0753,3469.5,3469.4,20.11182051]
[1762889495794,0.002,3469.5,3469.4,20.77882051]
[1762889496024,0.002,3469.5,3469.4,22.12982451]
[1762889499524,0.002,3469.5,3469.4,21.18432451]
[1762889500551,0.0753,3469.5,3469.4,21.18432451]
[1762889501050,0.5473,3469.5,3469.4,17.89647775]
[1762889501253,0.5473,3469.5,3469.4,18.54934276]
[1762889501869,0.0753,3469.5,3469.4,18.54934276]
[1762889502156,0.002,3469.5,3469.4,19.90034676]
[1762889502520,0.002,3469.5,3469.4,19.41154676]
[1762889502745,0.002,3469.5,3469.4,21.68982451]
[1762889502950,0.002,3469.5,3469.4,22.17862451]
[1762889505733,0.002,3469.5,3469.4,25.97462451]
[1762889506156,0.002,3469.5,3469.4,25.30762451]
[1762889506358,0.002,3469.5,3469.4,25.97462451]
[1762889508650,0.002,3469.5,3469.4,25.48582451]
[1762889509467,0.002,3469.5,3469.4,25.97462451]
[1762889511038,0.002,3469.5,3469.4,25.48582451]
[1762889511234,0.002,3469.5,3469.4,25.02912451]
[1762889511581,0.0753,3469.5,3469.4,24.36212451]
[1762889511764,0.5473,3469.5,3469.4,18.796]
[1762889511966,0.81689032,3469.5,3469.4,19.463]
[1762889512283,9.69365363,3469.5,3469.4,14.5]
[1762889512485,1.1337408,3469.4,3468.7,0.5]
[1762889512685,4.86076282,3469.0,3468.7,0.5]
[1762889512860,0.6357,3468.8,3468.7,3.38292443]
[1762889513063,0.90529032,3468.8,3468.7,0.5]
[1762889513258,1.00179032,3468.8,3468.7,0.5]
[1762889513600,6.99629394,3468.8,3468.7,0.5]
[1762889513900,6.99629394,3468.8,3468.7,15.0]
[1762889514188,2.03903112,3468.8,3468.7,17.88292443]
[1762889514477,1.85583112,3468.8,3468.7,17.88292443]
[1762889515178,0.72209032,3468.8,3468.7,17.88292443]
[1762889515380,0.72209032,3468.8,3468.7,18.28842843]
[1762889515584,0.72209032,3468.8,3468.7,20.44457298]
[1762889516691,0.72209032,3468.8,3468.7,20.70606898]
[1762889516984,0.72209032,3468.8,3468.7,21.11157298]
[1762889517392,0.4525,3468.8,3468.7,21.11157298]
[1762889518064,0.4525,3468.8,3468.7,18.54992443]
[1762889520556,1.1337408,3469.3,3469.2,0.5]
[1762889520892,1.40274406,3469.3,3469.2,0.5]
[1762889521085,1.94814406,3469.3,3469.2,0.5]
[1762889524059,1.94814406,3469.3,3469.2,15.0]